[Event "Titled Tuesday Blitz April 05 Early 2022"]
[White "Vovk, Orest"]
[Black "Lashkin, Jegor"]
[WhiteFideId "14113490"]
[BlackFideId "13907808"]
[WhiteElo "2203"]
[BlackElo "2368"]
[Result "0-1"]
[Round "03"]
[TimeControl "180+1"]
[Date "2022.04.05"]
[WhiteClock "0:00:02"]
[BlackClock "0:00:12"]

1. h4 {[%clk 0:02:56]}  Nf6 {[%clk 0:02:58]} 2. h5 {[%clk 0:02:55]}  h6 {[%clk 0:02:56]} 3. Nc3 {[%clk 0:02:54]}  d5 {[%clk 0:02:54]} 4. e4 {[%clk 0:02:55]}  dxe4 {[%clk 0:02:54]} 5. Qe2 {[%clk 0:02:55]}  Bf5 {[%clk 0:02:51]} 6. Qb5+ {[%clk 0:02:54]}  Bd7 {[%clk 0:02:49]} 7. Qxb7 {[%clk 0:02:54]}  Nc6 {[%clk 0:02:49]} 8. Bb5 {[%clk 0:02:55]}  Rb8 {[%clk 0:02:48]} 9. Qxc6 {[%clk 0:02:54]}  Bxc6 {[%clk 0:02:49]} 10. Bxc6+ {[%clk 0:02:55]}  Nd7 {[%clk 0:02:49]} 11. Nxe4 {[%clk 0:02:56]}  Rb6 {[%clk 0:02:47]} 12. Ba4 {[%clk 0:02:55]}  Qa8 {[%clk 0:02:44]} 13. Rh4 {[%clk 0:02:23]}  Re6 {[%clk 0:02:37]} 14. d3 {[%clk 0:02:19]}  f5 {[%clk 0:02:37]} 15. Bb3 {[%clk 0:02:17]}  Re5 {[%clk 0:02:32]} 16. f4 {[%clk 0:02:13]}  Ra5 {[%clk 0:02:27]} 17. Bd2 {[%clk 0:02:10]}  Rb5 {[%clk 0:02:20]} 18. Nc3 {[%clk 0:02:08]}  Qxg2 {[%clk 0:02:01]} 19. O-O-O {[%clk 0:02:07]}  Rxb3 {[%clk 0:01:43]} 20. axb3 {[%clk 0:02:08]}  e6 {[%clk 0:01:42]} 21. Nge2 {[%clk 0:02:02]}  Bc5 {[%clk 0:01:38]} 22. d4 {[%clk 0:01:58]}  Be7 {[%clk 0:01:37]} 23. Rhh1 {[%clk 0:01:55]}  Kf7 {[%clk 0:01:36]} 24. d5 {[%clk 0:01:40]}  Bf6 {[%clk 0:01:25]} 25. dxe6+ {[%clk 0:01:34]}  Kxe6 {[%clk 0:01:26]} 26. Be3 {[%clk 0:01:30]}  Re8 {[%clk 0:01:15]} 27. Nd4+ {[%clk 0:01:08]}  Kf7 {[%clk 0:01:09]} 28. Nxf5 {[%clk 0:01:02]}  Nb6 {[%clk 0:01:04]} 29. Bxb6 {[%clk 0:00:56]}  axb6 {[%clk 0:01:00]} 30. Nd5 {[%clk 0:00:54]}  Re2 {[%clk 0:00:57]} 31. Nfe3 {[%clk 0:00:42]}  Qe4 {[%clk 0:00:57]} 32. Rh3 {[%clk 0:00:16]}  Bd4 {[%clk 0:00:50]} 33. Rd3 {[%clk 0:00:09]}  c6 {[%clk 0:00:46]} 34. Nc3 {[%clk 0:00:07]}  Bxe3+ {[%clk 0:00:25]} 35. Kb1 {[%clk 0:00:07]}  Qxf4 {[%clk 0:00:16]} 36. Nxe2 {[%clk 0:00:06]}  Qf1+ {[%clk 0:00:15]} 37. Ka2 {[%clk 0:00:05]}  Qxh3 {[%clk 0:00:15]} 38. Nd4 {[%clk 0:00:05]}  Qd7 {[%clk 0:00:11]} 39. Nf3 {[%clk 0:00:02]}  Qa7+ {[%clk 0:00:11]} 40. Kb1 {[%clk 0:00:02]}  Bf4 {[%clk 0:00:12]} 41. Rd7+ {[%clk 0:00:02]} 0-1


[Site "https://www.chess.com"]

[Event "Titled Tuesday Blitz April 05 Early 2022"]
[White "Weetik, Vjacheslav"]
[Black "Sliwicka, Alicja"]
[WhiteFideId "4153472"]
[BlackFideId "1150677"]
[WhiteElo "2469"]
[BlackElo "2120"]
[Result "0-1"]
[Round "03"]
[TimeControl "180+1"]
[Date "2022.04.05"]
[WhiteClock "0:00:04"]
[BlackClock "0:00:46"]

1. d4 {[%clk 0:02:48]}  Nf6 {[%clk 0:02:57]} 2. c4 {[%clk 0:02:47]}  c5 {[%clk 0:02:57]} 3. d5 {[%clk 0:02:37]}  b5 {[%clk 0:02:54]} 4. Nf3 {[%clk 0:02:37]}  e6 {[%clk 0:02:50]} 5. Bg5 {[%clk 0:02:27]}  h6 {[%clk 0:02:48]} 6. Bxf6 {[%clk 0:02:24]}  Qxf6 {[%clk 0:02:48]} 7. Qc2 {[%clk 0:01:54]}  bxc4 {[%clk 0:02:30]} 8. Nc3 {[%clk 0:01:53]}  Na6 {[%clk 0:02:19]} 9. a3 {[%clk 0:01:48]}  Nc7 {[%clk 0:02:15]} 10. e4 {[%clk 0:01:41]}  exd5 {[%clk 0:02:11]} 11. exd5 {[%clk 0:01:38]}  d6 {[%clk 0:02:12]} 12. Bxc4 {[%clk 0:01:36]}  Bf5 {[%clk 0:02:12]} 13. Qa4+ {[%clk 0:01:27]}  Bd7 {[%clk 0:02:10]} 14. Qa5 {[%clk 0:01:27]}  Rc8 {[%clk 0:01:53]} 15. O-O {[%clk 0:01:25]}  Be7 {[%clk 0:01:51]} 16. Ne4 {[%clk 0:01:13]}  Qg6 {[%clk 0:01:49]} 17. Rfe1 {[%clk 0:01:09]}  O-O {[%clk 0:01:48]} 18. Ng3 {[%clk 0:00:36]}  Bf6 {[%clk 0:01:44]} 19. Re2 {[%clk 0:00:29]}  a6 {[%clk 0:01:36]} 20. Qd2 {[%clk 0:00:28]}  Nb5 {[%clk 0:01:34]} 21. Bd3 {[%clk 0:00:22]}  Qg4 {[%clk 0:01:27]} 22. h3 {[%clk 0:00:11]}  Qa4 {[%clk 0:01:25]} 23. Bc2 {[%clk 0:00:11]}  Qc4 {[%clk 0:01:24]} 24. Re4 {[%clk 0:00:11]}  Nd4 {[%clk 0:01:24]} 25. Bd3 {[%clk 0:00:09]}  Qb3 {[%clk 0:01:21]} 26. Nxd4 {[%clk 0:00:09]}  Bxd4 {[%clk 0:01:16]} 27. Nh5 {[%clk 0:00:08]}  Qxb2 {[%clk 0:01:07]} 28. Qxb2 {[%clk 0:00:08]}  Bxb2 {[%clk 0:01:08]} 29. Rb1 {[%clk 0:00:07]}  Bf5 {[%clk 0:01:02]} 30. Rxb2 {[%clk 0:00:07]}  c4 {[%clk 0:01:01]} 31. Bc2 {[%clk 0:00:06]}  c3 {[%clk 0:00:59]} 32. Ra2 {[%clk 0:00:07]}  Bxe4 {[%clk 0:00:58]} 33. Bxe4 {[%clk 0:00:08]}  Rfe8 {[%clk 0:00:58]} 34. Ng3 {[%clk 0:00:08]}  g6 {[%clk 0:00:55]} 35. Rc2 {[%clk 0:00:07]}  f5 {[%clk 0:00:55]} 36. Bd3 {[%clk 0:00:07]}  Re1+ {[%clk 0:00:54]} 37. Kh2 {[%clk 0:00:07]}  Ra1 {[%clk 0:00:53]} 38. Ne2 {[%clk 0:00:06]}  Rxa3 {[%clk 0:00:53]} 39. Nd4 {[%clk 0:00:06]}  Rb8 {[%clk 0:00:51]} 40. Nc6 {[%clk 0:00:06]}  Rb2 {[%clk 0:00:51]} 41. Rc1 {[%clk 0:00:06]}  c2 {[%clk 0:00:50]} 42. Rxc2 {[%clk 0:00:06]}  Rxc2 {[%clk 0:00:50]} 43. Bxc2 {[%clk 0:00:07]}  Ra2 {[%clk 0:00:50]} 44. Bd3 {[%clk 0:00:07]}  a5 {[%clk 0:00:50]} 45. f3 {[%clk 0:00:06]}  a4 {[%clk 0:00:49]} 46. Bc4 {[%clk 0:00:06]}  Rc2 {[%clk 0:00:48]} 47. Bd3 {[%clk 0:00:06]}  Rc3 {[%clk 0:00:48]} 48. Bb1 {[%clk 0:00:05]}  a3 {[%clk 0:00:48]} 49. Kg3 {[%clk 0:00:03]}  Rb3 {[%clk 0:00:47]} 50. Ba2 {[%clk 0:00:03]}  Rb2 {[%clk 0:00:48]} 51. Bc4 {[%clk 0:00:04]}  a2 {[%clk 0:00:46]} 52. Bxa2 {[%clk 0:00:04]}  Rxa2 {[%clk 0:00:47]} 53. Kf4 {[%clk 0:00:04]}  Rxg2 {[%clk 0:00:46]} 0-1


[Site "https://www.chess.com"]

[Event "Titled Tuesday Blitz April 05 Early 2022"]
[White "Yordanov, Nikolay Plamenov"]
[Black "Prado Lobo, Jonas"]
[WhiteFideId "2907445"]
[BlackFideId "32050666"]
[WhiteElo "2248"]
[BlackElo "2214"]
[Result "1-0"]
[Round "03"]
[TimeControl "180+1"]
[Date "2022.04.05"]
[WhiteClock "0:00:40"]
[BlackClock "0:00:21"]

1. d4 {[%clk 0:03:00]}  Nf6 {[%clk 0:02:59]} 2. Bf4 {[%clk 0:03:01]}  c5 {[%clk 0:02:55]} 3. e3 {[%clk 0:03:01]}  e6 {[%clk 0:02:55]} 4. Nf3 {[%clk 0:03:00]}  b6 {[%clk 0:02:54]} 5. Nbd2 {[%clk 0:02:58]}  Bb7 {[%clk 0:02:54]} 6. c3 {[%clk 0:02:58]}  d6 {[%clk 0:02:50]} 7. h3 {[%clk 0:02:58]}  Nbd7 {[%clk 0:02:49]} 8. Bd3 {[%clk 0:02:56]}  Qe7 {[%clk 0:02:45]} 9. e4 {[%clk 0:02:40]}  e5 {[%clk 0:02:36]} 10. dxe5 {[%clk 0:02:40]}  Nxe5 {[%clk 0:02:35]} 11. Nxe5 {[%clk 0:02:33]}  dxe5 {[%clk 0:02:35]} 12. Bg5 {[%clk 0:02:33]}  O-O-O {[%clk 0:02:29]} 13. Qe2 {[%clk 0:02:29]}  h6 {[%clk 0:02:26]} 14. Bh4 {[%clk 0:02:24]}  g5 {[%clk 0:02:14]} 15. Bg3 {[%clk 0:02:23]}  h5 {[%clk 0:02:10]} 16. h4 {[%clk 0:02:18]}  g4 {[%clk 0:02:04]} 17. O-O {[%clk 0:02:14]}  Bh6 {[%clk 0:02:03]} 18. Nc4 {[%clk 0:02:06]}  Bf4 {[%clk 0:01:42]} 19. a4 {[%clk 0:02:00]}  Qe6 {[%clk 0:01:27]} 20. a5 {[%clk 0:01:39]}  b5 {[%clk 0:01:27]} 21. a6 {[%clk 0:01:34]}  Bxe4 {[%clk 0:00:50]} 22. Bxe4 {[%clk 0:01:20]}  Qxc4 {[%clk 0:00:49]} 23. Bb7+ {[%clk 0:01:20]}  Kc7 {[%clk 0:00:37]} 24. Qc2 {[%clk 0:01:03]}  Rd2 {[%clk 0:00:32]} 25. Qf5 {[%clk 0:01:01]}  Bxg3 {[%clk 0:00:22]} 26. fxg3 {[%clk 0:00:58]}  Qe2 {[%clk 0:00:21]} 27. Qxf6 {[%clk 0:00:51]}  e4 {[%clk 0:00:22]} 28. Qe7+ {[%clk 0:00:41]}  Kb8 {[%clk 0:00:21]} 29. Qe5+ {[%clk 0:00:40]} 1-0


[Site "https://www.chess.com"]

[Event "Titled Tuesday Blitz April 05 Early 2022"]
[White "Yushko, Olga"]
[Black "Hamley, Ryan"]
[WhiteFideId "14114500"]
[BlackFideId "30959497"]
[WhiteElo "2028"]
[BlackElo "2540"]
[Result "0-1"]
[Round "03"]
[TimeControl "180+1"]
[Date "2022.04.05"]
[WhiteClock "0:00:16"]
[BlackClock "0:00:10"]

1. d4 {[%clk 0:02:42]}  Nf6 {[%clk 0:02:56]} 2. c4 {[%clk 0:02:42]}  e6 {[%clk 0:02:55]} 3. Nc3 {[%clk 0:02:42]}  d5 {[%clk 0:02:55]} 4. cxd5 {[%clk 0:02:42]}  Nxd5 {[%clk 0:02:55]} 5. Nf3 {[%clk 0:02:40]}  Nxc3 {[%clk 0:02:52]} 6. bxc3 {[%clk 0:02:40]}  c5 {[%clk 0:02:53]} 7. Bg5 {[%clk 0:02:38]}  Qa5 {[%clk 0:02:51]} 8. Qb3 {[%clk 0:02:32]}  cxd4 {[%clk 0:02:45]} 9. Bd2 {[%clk 0:02:30]}  Nc6 {[%clk 0:02:35]} 10. Nxd4 {[%clk 0:02:25]}  Be7 {[%clk 0:02:23]} 11. Nxc6 {[%clk 0:02:14]}  bxc6 {[%clk 0:02:24]} 12. g3 {[%clk 0:02:14]}  Ba6 {[%clk 0:02:20]} 13. Bg2 {[%clk 0:02:13]}  Rc8 {[%clk 0:02:20]} 14. O-O {[%clk 0:02:03]}  Bxe2 {[%clk 0:02:15]} 15. Rfe1 {[%clk 0:02:03]}  Ba6 {[%clk 0:02:15]} 16. Rad1 {[%clk 0:01:45]}  O-O {[%clk 0:02:13]} 17. c4 {[%clk 0:01:45]}  Qc5 {[%clk 0:02:10]} 18. Rc1 {[%clk 0:01:33]}  Bf6 {[%clk 0:02:03]} 19. Qa4 {[%clk 0:01:29]}  Qd6 {[%clk 0:01:32]} 20. Qc2 {[%clk 0:01:24]}  c5 {[%clk 0:01:30]} 21. Bf4 {[%clk 0:01:23]}  Qb6 {[%clk 0:01:18]} 22. Qa4 {[%clk 0:01:20]}  e5 {[%clk 0:01:00]} 23. Rb1 {[%clk 0:01:16]}  Qe6 {[%clk 0:00:59]} 24. Bd5 {[%clk 0:01:14]}  Qd6 {[%clk 0:00:58]} 25. Be3 {[%clk 0:01:07]}  Rc7 {[%clk 0:00:54]} 26. Qa5 {[%clk 0:00:57]}  Bc8 {[%clk 0:00:52]} 27. Rb8 {[%clk 0:00:53]}  Be6 {[%clk 0:00:47]} 28. Bxe6 {[%clk 0:00:36]}  fxe6 {[%clk 0:00:40]} 29. Reb1 {[%clk 0:00:32]}  Be7 {[%clk 0:00:38]} 30. Rxf8+ {[%clk 0:00:26]}  Bxf8 {[%clk 0:00:35]} 31. Rb8 {[%clk 0:00:26]}  Kf7 {[%clk 0:00:35]} 32. h4 {[%clk 0:00:22]}  Be7 {[%clk 0:00:30]} 33. Ra8 {[%clk 0:00:19]}  Qb6 {[%clk 0:00:28]} 34. Qa3 {[%clk 0:00:19]}  Qb1+ {[%clk 0:00:26]} 35. Kg2 {[%clk 0:00:19]}  Qe4+ {[%clk 0:00:26]} 36. Kh2 {[%clk 0:00:20]}  Qxa8 {[%clk 0:00:27]} 37. Qa4 {[%clk 0:00:19]}  Qc6 {[%clk 0:00:25]} 38. Qa5 {[%clk 0:00:19]}  Qb6 {[%clk 0:00:25]} 39. Qa3 {[%clk 0:00:19]}  Rd7 {[%clk 0:00:25]} 40. Qa4 {[%clk 0:00:19]}  Rd4 {[%clk 0:00:23]} 41. Bxd4 {[%clk 0:00:19]}  exd4 {[%clk 0:00:23]} 42. Qc2 {[%clk 0:00:19]}  Qc6 {[%clk 0:00:22]} 43. Qxh7 {[%clk 0:00:19]}  Qf3 {[%clk 0:00:21]} 44. Qc2 {[%clk 0:00:19]}  d3 {[%clk 0:00:20]} 45. Qd2 {[%clk 0:00:18]}  Bf6 {[%clk 0:00:19]} 46. h5 {[%clk 0:00:18]}  Qe2 {[%clk 0:00:20]} 47. Qf4 {[%clk 0:00:18]}  d2 {[%clk 0:00:15]} 48. Qc7+ {[%clk 0:00:18]}  Kg8 {[%clk 0:00:14]} 49. Qb8+ {[%clk 0:00:18]}  Kh7 {[%clk 0:00:14]} 50. Qf4 {[%clk 0:00:16]}  Qxh5+ {[%clk 0:00:13]} 51. Kg2 {[%clk 0:00:16]}  d1=Q {[%clk 0:00:14]} 52. Qe4+ {[%clk 0:00:16]}  Qf5 {[%clk 0:00:13]} 53. Qe3 {[%clk 0:00:16]}  Qdd3 {[%clk 0:00:11]} 54. Qe1 {[%clk 0:00:16]}  Qdf3+ {[%clk 0:00:11]} 55. Kg1 {[%clk 0:00:16]}  Qh3 {[%clk 0:00:10]} 56. Qf1 {[%clk 0:00:16]}  Qhh1# {[%clk 0:00:10]} 0-1


[Site "https://www.chess.com"]

[Event "Titled Tuesday Blitz April 05 Early 2022"]
[White "Zanette, Edgard Vinicius"]
[Black "Manelyuk, Daniil"]
[WhiteFideId "2109263"]
[BlackFideId "44173920"]
[WhiteElo "2182"]
[BlackElo "2209"]
[Result "1-0"]
[Round "03"]
[TimeControl "180+1"]
[Date "2022.04.05"]
[WhiteClock "0:00:07"]
[BlackClock "0:00:03"]

1. e4 {[%clk 0:03:00]}  e6 {[%clk 0:02:43]} 2. d4 {[%clk 0:02:59]}  d5 {[%clk 0:02:41]} 3. Nc3 {[%clk 0:02:59]}  Bb4 {[%clk 0:02:40]} 4. e5 {[%clk 0:02:29]}  c5 {[%clk 0:02:10]} 5. Bd2 {[%clk 0:02:28]}  Ne7 {[%clk 0:02:04]} 6. a3 {[%clk 0:02:25]}  Bxc3 {[%clk 0:01:37]} 7. Bxc3 {[%clk 0:02:26]}  O-O {[%clk 0:01:28]} 8. f4 {[%clk 0:02:14]}  b6 {[%clk 0:01:21]} 9. Nf3 {[%clk 0:02:13]}  Ba6 {[%clk 0:01:17]} 10. Bxa6 {[%clk 0:02:11]}  Nxa6 {[%clk 0:01:11]} 11. O-O {[%clk 0:02:03]}  Rc8 {[%clk 0:01:02]} 12. Qd3 {[%clk 0:01:54]}  cxd4 {[%clk 0:00:53]} 13. Bxd4 {[%clk 0:01:51]}  Nc5 {[%clk 0:00:51]} 14. Bxc5 {[%clk 0:01:43]}  bxc5 {[%clk 0:00:48]} 15. Ng5 {[%clk 0:01:43]}  Ng6 {[%clk 0:00:29]} 16. Rf3 {[%clk 0:01:11]}  c4 {[%clk 0:00:23]} 17. Qe2 {[%clk 0:00:53]}  h6 {[%clk 0:00:21]} 18. Nh3 {[%clk 0:00:45]}  Qb6+ {[%clk 0:00:20]} 19. Kh1 {[%clk 0:00:46]}  Qxb2 {[%clk 0:00:18]} 20. Rg1 {[%clk 0:00:46]}  Nh4 {[%clk 0:00:17]} 21. Rg3 {[%clk 0:00:40]}  Nf5 {[%clk 0:00:13]} 22. Rg4 {[%clk 0:00:37]}  Qd4 {[%clk 0:00:09]} 23. Nf2 {[%clk 0:00:32]}  Qe3 {[%clk 0:00:07]} 24. Qf1 {[%clk 0:00:30]}  c3 {[%clk 0:00:04]} 25. Nd3 {[%clk 0:00:28]}  Qd2 {[%clk 0:00:04]} 26. Nb4 {[%clk 0:00:22]}  a5 {[%clk 0:00:03]} 27. Nd3 {[%clk 0:00:18]}  Qxc2 {[%clk 0:00:03]} 28. Qf3 {[%clk 0:00:18]}  Qd2 {[%clk 0:00:04]} 29. Nc1 {[%clk 0:00:15]}  Qe3 {[%clk 0:00:04]} 30. Qd1 {[%clk 0:00:14]}  c2 {[%clk 0:00:03]} 31. Qe1 {[%clk 0:00:14]}  Rc4 {[%clk 0:00:04]} 32. Qxa5 {[%clk 0:00:12]}  Rxf4 {[%clk 0:00:03]} 33. Rxf4 {[%clk 0:00:10]}  Qxf4 {[%clk 0:00:04]} 34. Qc3 {[%clk 0:00:10]}  Qf2 {[%clk 0:00:03]} 35. Nd3 {[%clk 0:00:08]}  Qe3 {[%clk 0:00:03]} 36. Qxc2 {[%clk 0:00:08]}  Nd4 {[%clk 0:00:03]} 37. Qd1 {[%clk 0:00:08]}  Ne2 {[%clk 0:00:03]} 38. Re1 {[%clk 0:00:08]}  Nc3 {[%clk 0:00:04]} 39. Qc2 {[%clk 0:00:07]}  Nd1 {[%clk 0:00:04]} 40. Rxe3 {[%clk 0:00:06]}  Nxe3 {[%clk 0:00:03]} 41. Qe2 {[%clk 0:00:07]}  Nc4 {[%clk 0:00:03]} 42. h4 {[%clk 0:00:07]}  Ra8 {[%clk 0:00:03]} 43. Nb4 {[%clk 0:00:07]}  Rxa3 {[%clk 0:00:03]} 44. Nc6 {[%clk 0:00:08]}  Re3 {[%clk 0:00:03]} 45. Qa2 {[%clk 0:00:07]}  Re4 {[%clk 0:00:03]} 46. Qa8+ {[%clk 0:00:07]}  Kh7 {[%clk 0:00:03]} 47. Qe8 {[%clk 0:00:08]}  Rf4 {[%clk 0:00:03]} 48. Kh2 {[%clk 0:00:07]}  Ne3 {[%clk 0:00:03]} 49. g3 {[%clk 0:00:07]}  Rf2+ {[%clk 0:00:03]} 50. Kh3 {[%clk 0:00:07]}  Rf3 {[%clk 0:00:03]} 51. Ne7 {[%clk 0:00:07]}  Nf5 {[%clk 0:00:03]} 52. Qg8# {[%clk 0:00:07]} 1-0


[Site "https://www.chess.com"]

[Event "Titled Tuesday Blitz April 05 Early 2022"]
[White "Zarubitski, Viachaslau"]
[Black "Silva, Miguel Antonio Neto"]
[WhiteFideId "13509373"]
[BlackFideId "1911929"]
[WhiteElo "2325"]
[BlackElo "2204"]
[Result "1-0"]
[Round "03"]
[TimeControl "180+1"]
[Date "2022.04.05"]
[WhiteClock "0:00:42"]
[BlackClock "0:01:13"]

1. e4 {[%clk 0:02:26]}  c6 {[%clk 0:02:58]} 2. d4 {[%clk 0:02:26]}  d5 {[%clk 0:02:58]} 3. e5 {[%clk 0:02:26]}  Bf5 {[%clk 0:02:58]} 4. h4 {[%clk 0:02:26]}  h5 {[%clk 0:02:57]} 5. c4 {[%clk 0:02:26]}  e6 {[%clk 0:02:56]} 6. Nc3 {[%clk 0:02:26]}  Nd7 {[%clk 0:02:55]} 7. Nge2 {[%clk 0:02:25]}  Ne7 {[%clk 0:02:50]} 8. Ng3 {[%clk 0:02:25]}  Bg6 {[%clk 0:02:49]} 9. Bg5 {[%clk 0:02:25]}  Qb6 {[%clk 0:02:45]} 10. Rc1 {[%clk 0:02:22]}  Nf5 {[%clk 0:02:37]} 11. Nxf5 {[%clk 0:02:17]}  Bxf5 {[%clk 0:02:36]} 12. Qd2 {[%clk 0:02:14]}  a6 {[%clk 0:02:09]} 13. c5 {[%clk 0:01:48]}  Qb4 {[%clk 0:01:54]} 14. a3 {[%clk 0:01:26]}  Qa5 {[%clk 0:01:46]} 15. Bd3 {[%clk 0:01:25]}  g6 {[%clk 0:01:39]} 16. Bxf5 {[%clk 0:01:23]}  gxf5 {[%clk 0:01:39]} 17. O-O {[%clk 0:01:20]}  Bg7 {[%clk 0:01:38]} 18. Qe3 {[%clk 0:01:09]}  Nf8 {[%clk 0:01:36]} 19. b4 {[%clk 0:01:01]}  Qxa3 {[%clk 0:01:27]} 20. Ra1 {[%clk 0:00:59]}  Qb3 {[%clk 0:01:27]} 21. Rfb1 {[%clk 0:00:56]}  Qc4 {[%clk 0:01:26]} 22. b5 {[%clk 0:00:55]}  Ng6 {[%clk 0:01:13]} 23. bxc6 {[%clk 0:00:42]}  bxc6 {[%clk 0:01:13]} 24. Ra4 {[%clk 0:00:42]} 1-0


[Site "https://www.chess.com"]

[Event "Titled Tuesday Blitz April 05 Early 2022"]
[White "nobodyperfect13"]
[Black "Petrovic, Aleksa"]
[BlackFideId "967629"]
[WhiteElo "1922"]
[BlackElo "2198"]
[Result "1-0"]
[Round "03"]
[TimeControl "180+1"]
[Date "2022.04.05"]
[WhiteClock "0:00:17"]
[BlackClock "0:00:02"]

1. c4 {[%clk 0:03:00]}  e6 {[%clk 0:02:59]} 2. Nf3 {[%clk 0:02:59]}  Nf6 {[%clk 0:02:58]} 3. g3 {[%clk 0:03:00]}  b6 {[%clk 0:02:56]} 4. Bg2 {[%clk 0:03:00]}  Bb7 {[%clk 0:02:56]} 5. O-O {[%clk 0:03:00]}  c5 {[%clk 0:02:55]} 6. Nc3 {[%clk 0:03:00]}  a6 {[%clk 0:02:55]} 7. Re1 {[%clk 0:03:00]}  Be7 {[%clk 0:02:53]} 8. e4 {[%clk 0:03:00]}  d6 {[%clk 0:02:53]} 9. d4 {[%clk 0:03:00]}  cxd4 {[%clk 0:02:54]} 10. Nxd4 {[%clk 0:03:00]}  Ra7 {[%clk 0:02:42]} 11. b3 {[%clk 0:02:53]}  O-O {[%clk 0:02:37]} 12. Bb2 {[%clk 0:02:53]}  Nbd7 {[%clk 0:02:34]} 13. Qe2 {[%clk 0:02:45]}  Qb8 {[%clk 0:02:33]} 14. Rad1 {[%clk 0:02:42]}  Bd8 {[%clk 0:02:25]} 15. f4 {[%clk 0:02:32]}  Re8 {[%clk 0:02:23]} 16. Qf3 {[%clk 0:02:27]}  Bc7 {[%clk 0:02:20]} 17. g4 {[%clk 0:02:23]}  g6 {[%clk 0:02:03]} 18. g5 {[%clk 0:02:00]}  Nh5 {[%clk 0:02:02]} 19. Nde2 {[%clk 0:01:59]}  f5 {[%clk 0:01:55]} 20. Ng3 {[%clk 0:01:57]}  Nxg3 {[%clk 0:01:52]} 21. hxg3 {[%clk 0:01:56]}  Nc5 {[%clk 0:01:48]} 22. Qe3 {[%clk 0:01:52]}  Qa8 {[%clk 0:01:44]} 23. Rd2 {[%clk 0:01:43]}  Nxe4 {[%clk 0:01:25]} 24. Nxe4 {[%clk 0:01:42]}  Bxe4 {[%clk 0:01:26]} 25. Bxe4 {[%clk 0:01:42]}  Qxe4 {[%clk 0:01:26]} 26. Qxe4 {[%clk 0:01:42]}  fxe4 {[%clk 0:01:27]} 27. Rxe4 {[%clk 0:01:42]}  b5 {[%clk 0:01:26]} 28. Kg2 {[%clk 0:01:30]}  Kf7 {[%clk 0:01:23]} 29. Rd1 {[%clk 0:01:17]}  b4 {[%clk 0:01:09]} 30. c5 {[%clk 0:01:12]}  dxc5 {[%clk 0:00:57]} 31. Rc4 {[%clk 0:01:03]}  Bb6 {[%clk 0:00:50]} 32. Rd6 {[%clk 0:00:57]}  Rb7 {[%clk 0:00:40]} 33. Rc1 {[%clk 0:00:56]}  a5 {[%clk 0:00:36]} 34. Rh1 {[%clk 0:00:55]}  Kg8 {[%clk 0:00:36]} 35. Rc6 {[%clk 0:00:53]}  Rd8 {[%clk 0:00:31]} 36. Be5 {[%clk 0:00:50]}  Ba7 {[%clk 0:00:25]} 37. Rxe6 {[%clk 0:00:49]}  a4 {[%clk 0:00:15]} 38. Rxg6+ {[%clk 0:00:29]}  hxg6 {[%clk 0:00:09]} 39. Rh8+ {[%clk 0:00:30]}  Kf7 {[%clk 0:00:10]} 40. Rxd8 {[%clk 0:00:30]}  axb3 {[%clk 0:00:09]} 41. axb3 {[%clk 0:00:30]}  Ke6 {[%clk 0:00:08]} 42. Rd6+ {[%clk 0:00:27]}  Kf7 {[%clk 0:00:06]} 43. Rc6 {[%clk 0:00:22]}  Rd7 {[%clk 0:00:04]} 44. Kf3 {[%clk 0:00:22]}  Rd3+ {[%clk 0:00:04]} 45. Ke4 {[%clk 0:00:22]}  Rxb3 {[%clk 0:00:04]} 46. Rc7+ {[%clk 0:00:22]}  Ke6 {[%clk 0:00:04]} 47. g4 {[%clk 0:00:17]}  Re3+ {[%clk 0:00:01]} 48. Kxe3 {[%clk 0:00:17]}  c4+ {[%clk 0:00:02]} 49. Ke4 {[%clk 0:00:17]} 1-0


[Site "https://www.chess.com"]

[Event "Titled Tuesday Blitz April 05 Early 2022"]
[White "Adewumi, Tanitoluwa"]
[Black "Moskvin, Anatoly"]
[WhiteFideId "30966396"]
[BlackFideId "24199990"]
[WhiteElo "2590"]
[BlackElo "2079"]
[Result "0-1"]
[Round "04"]
[TimeControl "180+1"]
[Date "2022.04.05"]
[WhiteClock "0:00:01"]
[BlackClock "0:00:45"]

1. e4 {[%clk 0:02:59]}  e5 {[%clk 0:02:59]} 2. Nf3 {[%clk 0:02:44]}  d5 {[%clk 0:02:58]} 3. exd5 {[%clk 0:02:41]}  e4 {[%clk 0:02:58]} 4. Nd4 {[%clk 0:02:35]}  Qxd5 {[%clk 0:02:58]} 5. Nb3 {[%clk 0:02:26]}  Nf6 {[%clk 0:02:58]} 6. Nc3 {[%clk 0:02:25]}  Qf5 {[%clk 0:02:56]} 7. Bb5+ {[%clk 0:02:21]}  c6 {[%clk 0:02:55]} 8. Be2 {[%clk 0:02:17]}  Qg6 {[%clk 0:02:45]} 9. g3 {[%clk 0:01:29]}  h5 {[%clk 0:02:40]} 10. h4 {[%clk 0:01:25]}  Ng4 {[%clk 0:02:39]} 11. d3 {[%clk 0:01:09]}  Bb4 {[%clk 0:02:10]} 12. dxe4 {[%clk 0:01:04]}  Qxe4 {[%clk 0:01:47]} 13. O-O {[%clk 0:00:35]}  Qg6 {[%clk 0:01:43]} 14. Bd3 {[%clk 0:00:29]}  Qd6 {[%clk 0:01:33]} 15. Bf4 {[%clk 0:00:26]}  Qf6 {[%clk 0:01:30]} 16. Re1+ {[%clk 0:00:25]}  Be6 {[%clk 0:01:29]} 17. Ne4 {[%clk 0:00:18]}  Qd8 {[%clk 0:01:25]} 18. c3 {[%clk 0:00:18]}  Be7 {[%clk 0:01:25]} 19. Nec5 {[%clk 0:00:15]}  Qb6 {[%clk 0:01:16]} 20. Qe2 {[%clk 0:00:02]}  Bxc5 {[%clk 0:01:13]} 21. Nxc5 {[%clk 0:00:03]}  Qxc5 {[%clk 0:01:14]} 22. Bc4 {[%clk 0:00:02]}  O-O {[%clk 0:00:43]} 23. Bxe6 {[%clk 0:00:01]}  fxe6 {[%clk 0:00:44]} 24. Qxe6+ {[%clk 0:00:01]}  Kh8 {[%clk 0:00:45]} 0-1


[Site "https://www.chess.com"]

[Event "Titled Tuesday Blitz April 05 Early 2022"]
[White "Ardila, Oscar Humberto"]
[Black "Odegov, Artem"]
[WhiteFideId "4404742"]
[BlackFideId "34183644"]
[WhiteElo "1983"]
[BlackElo "2286"]
[Result "0-1"]
[Round "04"]
[TimeControl "180+1"]
[Date "2022.04.05"]
[WhiteClock "0:01:59"]
[BlackClock "0:01:23"]

1. d4 {[%clk 0:03:00]}  c5 {[%clk 0:02:57]} 2. d5 {[%clk 0:03:00]}  Nf6 {[%clk 0:02:58]} 3. c4 {[%clk 0:03:01]}  e6 {[%clk 0:02:58]} 4. Nc3 {[%clk 0:03:01]}  exd5 {[%clk 0:02:58]} 5. cxd5 {[%clk 0:03:02]}  d6 {[%clk 0:02:59]} 6. e4 {[%clk 0:03:01]}  g6 {[%clk 0:03:00]} 7. h3 {[%clk 0:03:00]}  Bg7 {[%clk 0:03:00]} 8. Nf3 {[%clk 0:03:01]}  O-O {[%clk 0:03:00]} 9. Bd3 {[%clk 0:03:00]}  Re8 {[%clk 0:02:58]} 10. O-O {[%clk 0:03:00]}  Nbd7 {[%clk 0:02:55]} 11. Bf4 {[%clk 0:02:58]}  Nf8 {[%clk 0:02:52]} 12. Re1 {[%clk 0:02:57]}  h6 {[%clk 0:02:49]} 13. Qd2 {[%clk 0:02:52]}  g5 {[%clk 0:02:49]} 14. Bh2 {[%clk 0:02:50]}  Ng6 {[%clk 0:02:49]} 15. e5 {[%clk 0:02:44]}  dxe5 {[%clk 0:02:49]} 16. Bxg6 {[%clk 0:02:42]}  fxg6 {[%clk 0:02:47]} 17. Nxe5 {[%clk 0:02:42]}  Bf5 {[%clk 0:02:45]} 18. Rad1 {[%clk 0:02:40]}  Ne4 {[%clk 0:02:37]} 19. Nxe4 {[%clk 0:02:36]}  Bxe5 {[%clk 0:02:37]} 20. Bxe5 {[%clk 0:02:20]}  Rxe5 {[%clk 0:02:38]} 21. Nc3 {[%clk 0:02:20]}  Rxe1+ {[%clk 0:02:27]} 22. Rxe1 {[%clk 0:02:20]}  Qd7 {[%clk 0:02:27]} 23. d6 {[%clk 0:02:14]}  Rf8 {[%clk 0:01:27]} 24. Re7 {[%clk 0:02:09]}  Qc6 {[%clk 0:01:26]} 25. Qd3 {[%clk 0:01:59]}  Bxd3 {[%clk 0:01:23]} 0-1


[Site "https://www.chess.com"]